[Event "Nové Hrady - Open"]
[Site "Nové Hrady, Czech Republic"]
[Date "2024.08.17"]
[Round "7.7"]
[White "Hajicek, Matyas"]
[Black "Picek, Miroslav"]
[Result "1/2-1/2"]
[TimeControl "2x90min+30s"]
[WhiteFideId "23764481"]
[BlackFideId "325198"]
[WhiteElo "1653"]
[BlackElo "1922"]

1. e4 {[%clk 01:30:57]} {[%emt 00:00:03]} d6 {[%clk 01:29:24]} {[%emt
00:01:37]} 2. d4 {[%clk 01:31:20]} {[%emt 00:00:07]} Nf6 {[%clk 01:29:48]}
{[%emt 00:00:05]} 3. Nc3 {[%clk 01:31:42]} {[%emt 00:00:08]} c6 {[%clk
01:30:09]} {[%emt 00:00:09]} 4. f3 {[%clk 01:31:13]} {[%emt 00:00:59]} Qc7
{[%clk 01:30:18]} {[%emt 00:00:21]} 5. Be3 {[%clk 01:30:03]} {[%emt 00:01:41]}
a6 {[%clk 01:30:01]} {[%emt 00:00:46]} 6. a4 {[%clk 01:25:58]} {[%emt
00:04:36]} b6 {[%clk 01:22:04]} {[%emt 00:08:26]} 7. Bc4 {[%clk 01:23:18]}
{[%emt 00:03:10]} e5 {[%clk 01:19:26]} {[%emt 00:03:09]} 8. Nge2 {[%clk
01:13:41]} {[%emt 00:10:06]} Be7 {[%clk 01:15:45]} {[%emt 00:04:11]} 9. Qd2
{[%clk 01:11:25]} {[%emt 00:02:47]} Nbd7 {[%clk 01:09:38]} {[%emt 00:06:36]} 10.
Ng3 {[%clk 01:06:00]} {[%emt 00:05:55]} Nf8 {[%clk 01:00:48]} {[%emt 00:09:25]}
11. dxe5 {[%clk 00:53:45]} {[%emt 00:12:40]} dxe5 {[%clk 00:57:14]} {[%emt
00:04:04]} 12. Kf2 {[%clk 00:50:23]} {[%emt 00:03:51]} Be6 {[%clk 00:50:13]}
{[%emt 00:07:31]} 13. Qe2 {[%clk 00:46:48]} {[%emt 00:04:06]} Bxc4 {[%clk
00:42:06]} {[%emt 00:08:38]} 14. Qxc4 {[%clk 00:46:59]} {[%emt 00:00:18]} g6
{[%clk 00:40:44]} {[%emt 00:01:52]} 15. b4 {[%clk 00:40:37]} {[%emt 00:06:52]}
Ne6 {[%clk 00:27:37]} {[%emt 00:13:36]} 16. b5 {[%clk 00:36:51]} {[%emt
00:04:17]} cxb5 {[%clk 00:27:40]} {[%emt 00:00:27]} 17. Qxc7 {[%clk 00:36:49]}
{[%emt 00:00:33]} Nxc7 {[%clk 00:27:57]} {[%emt 00:00:12]} 18. axb5 {[%clk
00:36:59]} {[%emt 00:00:20]} Bb4 {[%clk 00:24:14]} {[%emt 00:04:13]} 19. Na4
{[%clk 00:32:26]} {[%emt 00:05:04]} axb5 {[%clk 00:19:23]} {[%emt 00:05:20]} 20.
Nxb6 {[%clk 00:32:14]} {[%emt 00:00:42]} Rxa1 {[%clk 00:18:14]} {[%emt
00:01:39]} 21. Rxa1 {[%clk 00:32:41]} {[%emt 00:00:03]} O-O {[%clk 00:17:14]}
{[%emt 00:01:30]} 22. c4 {[%clk 00:24:23]} {[%emt 00:08:49]} bxc4 {[%clk
00:14:51]} {[%emt 00:02:51]} 23. Nxc4 {[%clk 00:24:15]} {[%emt 00:00:39]} Bc3
{[%clk 00:13:20]} {[%emt 00:02:01]} 24. Rc1 {[%clk 00:22:50]} {[%emt 00:01:55]}
Nb5 {[%clk 00:13:06]} {[%emt 00:00:44]} 25. Ne2 {[%clk 00:21:38]} {[%emt
00:01:42]} Bd4 {[%clk 00:12:19]} {[%emt 00:01:18]} 26. Bxd4 {[%clk 00:20:16]}
{[%emt 00:01:51]} exd4 {[%clk 00:12:04]} {[%emt 00:00:45]} 27. Rb1 {[%clk
00:19:04]} {[%emt 00:01:41]} Rc8 {[%clk 00:10:14]} {[%emt 00:02:20]} 28. Rxb5
{[%clk 00:17:48]} {[%emt 00:01:46]} Rxc4 {[%clk 00:10:37]} {[%emt 00:00:07]} 29.
Rb8+ {[%clk 00:17:37]} {[%emt 00:00:42]} Kg7 {[%clk 00:10:16]} {[%emt
00:00:51]} 30. Rd8 {[%clk 00:17:51]} {[%emt 00:00:16]} Rc2 {[%clk 00:05:21]}
{[%emt 00:05:25]} 31. Rxd4 {[%clk 00:14:53]} {[%emt 00:03:28]} h5 {[%clk
00:05:46]} {[%emt 00:00:05]} 32. Ke3 {[%clk 00:13:59]} {[%emt 00:01:23]} g5
{[%clk 00:05:20]} {[%emt 00:00:55]} 33. e5 {[%clk 00:10:30]} {[%emt 00:04:00]}
Ng8 {[%clk 00:05:26]} {[%emt 00:00:25]} 34. Rd7 {[%clk 00:08:17]} {[%emt
00:02:42]} Kg6 {[%clk 00:05:41]} {[%emt 00:00:16]} 35. g4 {[%clk 00:07:38]}
{[%emt 00:01:10]} hxg4 {[%clk 00:03:11]} {[%emt 00:02:59]} 36. fxg4 {[%clk
00:08:06]} {[%emt 00:00:02]} Rc4 {[%clk 00:00:52]} {[%emt 00:02:48]} 37. h3
{[%clk 00:06:27]} {[%emt 00:02:10]} Nh6 {[%clk 00:01:12]} {[%emt 00:00:09]} 38.
Kf3 {[%clk 00:04:02]} {[%emt 00:02:56]} f5 {[%clk 00:01:20]} {[%emt 00:00:21]}
39. Rd6+ {[%clk 00:01:40]} {[%emt 00:02:53]} Kg7 {[%clk 00:01:42]} {[%emt
00:00:08]} 40. Nd4 {[%clk 00:01:40]} {[%emt 00:00:31]} Rc3+ {[%clk 00:01:35]}
{[%emt 00:00:36]} 41. Kg2 {[%clk 00:02:08]} {[%emt 00:00:02]} fxg4 {[%clk
00:01:52]} {[%emt 00:00:13]} 42. hxg4 {[%clk 00:02:11]} {[%emt 00:00:27]} Nxg4
{[%clk 00:02:08]} {[%emt 00:00:14]} 43. Nf5+ {[%clk 00:01:58]} {[%emt
00:00:43]} Kf7 {[%clk 00:02:25]} {[%emt 00:00:13]} 44. e6+ {[%clk 00:01:50]}
{[%emt 00:00:38]} Ke8 {[%clk 00:02:30]} {[%emt 00:00:24]} 45. Ng7+ {[%clk
00:01:12]} {[%emt 00:01:09]} Kf8 {[%clk 00:02:26]} {[%emt 00:00:34]} 46. Rd7
{[%clk 00:00:37]} {[%emt 00:01:06]} Re3 {[%clk 00:02:41]} {[%emt 00:00:14]} 47.
Rf7+ {[%clk 00:00:38]} {[%emt 00:00:29]} Kg8 {[%clk 00:03:04]} {[%emt
00:00:06]} 48. Ra7 {[%clk 00:00:31]} {[%emt 00:00:38]} Nf6 {[%clk 00:02:08]}
{[%emt 00:01:25]} 49. Kf2 {[%clk 00:00:37]} {[%emt 00:00:25]} Re5 {[%clk
00:02:13]} {[%emt 00:00:25]} 50. e7 {[%clk 00:00:33]} {[%emt 00:00:35]} g4
{[%clk 00:00:57]} {[%emt 00:01:45]} 51. Kg2 {[%clk 00:00:32]} {[%emt 00:00:31]}
Re2+ {[%clk 00:01:09]} {[%emt 00:00:18]} 52. Kf1 {[%clk 00:00:59]} {[%emt
00:00:03]} Re5 {[%clk 00:01:27]} {[%emt 00:00:11]} 53. Kg2 {[%clk 00:00:34]}
{[%emt 00:00:56]} Re2+ {[%clk 00:01:52]} {[%emt 00:00:05]} 54. Kg3 {[%clk
00:00:53]} {[%emt 00:00:10]} Re3+ {[%emt 00:00:18]} 55. Kh4 {[%emt 00:00:55]}
g3 {[%clk 00:01:03]} {[%emt 00:00:06]} 56. Nf5 {[%clk 00:00:52]} {[%emt
00:00:32]} g2 {[%clk 00:00:46]} {[%emt 00:00:47]} 57. Nh6+ {[%clk 00:00:37]}
{[%emt 00:00:44]} Kh8 {[%clk 00:01:07]} {[%emt 00:00:08]} 58. Ra1 {[%clk
00:00:32]} {[%emt 00:00:36]} Rxe7 {[%clk 00:01:05]} {[%emt 00:00:32]} 59. Rg1
{[%clk 00:00:54]} {[%emt 00:00:08]} Rh7 {[%clk 00:01:08]} {[%emt 00:00:26]}
1/2-1/2

[Event "Nové Hrady - Open"]
[Site "Nové Hrady, Czech Republic"]
[Date "2024.08.17"]
[Round "7.8"]
[White "Brabcová, Nikola"]
[Black "Garabik, Marek"]
[Result "0-1"]
[TimeControl "2x90min+30s"]
[WhiteFideId "23739371"]
[BlackFideId "23717742"]
[WhiteElo "1507"]
[BlackElo "1916"]

1. e4 {[%clk 01:30:58]} {[%emt 00:00:02]} e6 {[%clk 01:30:55]} {[%emt
00:00:05]} 2. d4 {[%clk 01:31:18]} {[%emt 00:00:09]} d5 {[%clk 01:31:24]} 3. e5
{[%clk 01:31:32]} {[%emt 00:00:17]} c5 {[%clk 01:31:47]} {[%emt 00:00:07]} 4.
c3 {[%clk 01:31:44]} {[%emt 00:00:25]} Bd7 {[%clk 01:31:32]} {[%emt 00:00:39]}
5. f4 {[%clk 01:31:13]} {[%emt 00:01:01]} Qb6 {[%clk 01:31:46]} {[%emt
00:00:16]} 6. Nf3 {[%clk 01:31:03]} {[%emt 00:00:39]} Nc6 {[%clk 01:30:33]}
{[%emt 00:01:43]} 7. Be2 {[%clk 01:28:45]} {[%emt 00:02:48]} cxd4 {[%clk
01:30:14]} {[%emt 00:00:50]} 8. cxd4 {[%clk 01:28:47]} {[%emt 00:00:28]} Bb4+
{[%clk 01:30:38]} {[%emt 00:00:06]} 9. Nc3 {[%clk 01:28:47]} {[%emt 00:00:30]}
Nh6 {[%clk 01:30:18]} {[%emt 00:00:50]} 10. Be3 {[%clk 01:26:25]} {[%emt
00:02:51]} Nf5 {[%clk 01:27:36]} {[%emt 00:03:12]} 11. Bf2 {[%clk 01:25:13]}
{[%emt 00:01:42]} O-O {[%clk 01:26:16]} {[%emt 00:01:51]} 12. g4 {[%clk
01:21:35]} {[%emt 00:04:08]} Nfe7 {[%clk 01:26:26]} {[%emt 00:00:20]} 13. Bd3
{[%clk 01:18:10]} {[%emt 00:03:55]} Ng6 {[%clk 01:25:47]} {[%emt 00:01:09]} 14.
Be3 {[%clk 01:12:55]} {[%emt 00:05:44]} f6 {[%clk 01:25:03]} {[%emt 00:01:15]}
15. h4 {[%clk 01:11:07]} {[%emt 00:02:18]} fxe5 {[%clk 01:21:32]} {[%emt
00:04:00]} 16. fxe5 {[%clk 01:09:27]} {[%emt 00:02:09]} Ncxe5 {[%clk 01:20:56]}
{[%emt 00:01:07]} 17. Nxe5 {[%clk 01:08:43]} {[%emt 00:01:13]} Nxe5 {[%clk
01:21:25]} 18. Bc2 {[%clk 01:08:31]} {[%emt 00:00:45]} Nf3+ {[%clk 01:20:08]}
{[%emt 00:01:47]} 19. Ke2 {[%clk 01:07:32]} {[%emt 00:01:28]} Bxc3 {[%clk
01:18:27]} {[%emt 00:02:12]} 20. bxc3 {[%clk 01:07:45]} {[%emt 00:00:17]} Bb5+
{[%clk 01:18:28]} {[%emt 00:00:29]} 21. Bd3 {[%clk 01:07:47]} {[%emt 00:00:28]}
Bxd3+ {[%clk 01:18:56]} 22. Qxd3 {[%clk 01:08:03]} {[%emt 00:00:15]} Qb2+
{[%clk 01:19:21]} {[%emt 00:00:05]} 23. Bd2 {[%clk 01:07:26]} {[%emt 00:01:08]}
Nxd2 {[%clk 01:19:32]} {[%emt 00:00:19]} 24. Rad1 {[%clk 01:03:09]} Ne4+ {[%clk
01:19:55]} {[%emt 00:04:53]} 25. Rd2 {[%clk 01:02:20]} {[%emt 00:01:19]} Rf2+
{[%clk 01:20:12]} {[%emt 00:00:13]} 26. Ke1 {[%clk 01:02:14]} {[%emt 00:00:37]}
Rxd2 {[%clk 01:20:40]} {[%emt 00:00:02]} 27. Qf3 {[%clk 01:01:58]} {[%emt
00:00:46]} Qc1+ {[%clk 01:21:07]} {[%emt 00:00:02]} 28. Qd1 {[%clk 01:02:06]}
{[%emt 00:00:23]} Qxd1# {[%clk 01:21:24]} {[%emt 00:00:12]} 0-1